fUST/lending_fUST_20250217
["ID","MTS","AMOUNT","RATE_DAILY","PERIOD"]
[353310940,1739748641222,-708.5866726,0.000137,2]
[353310941,1739748641234,-708.5866726,0.000137,2]
[353310942,1739748641243,-708.5866726,0.000137,2]
[353310943,1739748641253,-708.5866726,0.000137,2]
[353310944,1739748641263,-708.58,0.000137,2]
[353310945,1739748641274,-151.0,0.000137,2]
[353310946,1739748641283,-151.0,0.000137,2]
[353310947,1739748641293,-151.0,0.000137,2]
[353310948,1739748641303,-151.0,0.000137,2]
[353310949,1739748641313,-151.0,0.000137,2]
[353310950,1739748641323,-151.0,0.000137,2]
[353310951,1739748641333,-151.0,0.000137,2]
[353310952,1739748641342,-1917.292053,0.000137,2]
[353310953,1739748641352,-1917.292053,0.000137,2]
[353310954,1739748641361,-151.0,0.000137,2]
[353310955,1739748641371,-1930.709053,0.000137,2]
[353310956,1739748641381,-1930.709053,0.000137,2]
[353310957,1739748641391,-5167.934145,0.000137,2]
[353310958,1739748641401,-5167.934145,0.000137,2]
[353310959,1739748641410,-331.186509,0.000137,2]
[353310960,1739748641420,-331.186509,0.000137,2]
[353310961,1739748641430,-1392.315967,0.000137,2]
[353310962,1739748641439,-1392.315967,0.000137,2]
[353310963,1739748641449,-11707.47771687,0.000137,2]
[353310964,1739748641459,-500.0,0.000137,2]
[353310965,1739748641469,-150.09,0.000137,2]
[353310966,1739748641479,-1331.92859273,0.000137,2]
[353310967,1739748641489,-150.09,0.000137,2]
[353310968,1739748641499,-514.81,0.000137,2]
[353310969,1739748641509,-514.81,0.000137,2]
[353310970,1739748641519,-514.81,0.000137,2]
[353310971,1739748641529,-514.81,0.000137,2]
[353310972,1739748641539,-514.81,0.000137,2]
[353310973,1739748641549,-514.81,0.000137,2]
[353310974,1739748641559,-514.81,0.000137,2]
[353310975,1739748641569,-514.81,0.000137,2]
[353310976,1739748641579,-514.81,0.000137,2]
[353310977,1739748641590,-514.81,0.000137,2]
[353310978,1739748641600,-514.81,0.000137,2]
[353310979,1739748641610,-514.81,0.000137,2]
[353310980,1739748641619,-514.81,0.000137,2]
[353310981,1739748641630,-514.81,0.000137,2]
[353310982,1739748641639,-514.81,0.000137,2]
[353310983,1739748641648,-514.81,0.000137,2]
[353310984,1739748641658,-153.0,0.00013708,2]
[353310985,1739748641668,-153.0,0.00013708,2]
[353310986,1739748641680,-153.0,0.00013708,2]
[353310987,1739748641690,-153.0,0.00013709,2]
[353310988,1739748641699,-153.0,0.00013709,2]
[353310989,1739748641710,-153.0,0.00013709,2]
[353310990,1739748641719,-153.0,0.00013709,2]
[353310991,1739748641729,-153.0,0.00013709,2]
[353310992,1739748641739,-500.0,0.00013773,2]
[353310993,1739748641748,-500.0,0.00013773,2]
[353310994,1739748641758,-500.0,0.00013773,2]
[353310995,1739748641768,-500.0,0.00013773,2]
[353310996,1739748641779,-5666.24966127,0.0001378,2]
[353310997,1739748641789,-237.15873219,0.00013799,2]
[353310998,1739748641799,-500.0,0.00013799,2]
[353310999,1739748641809,-268.68972109,0.00013799,2]
[353311000,1739748641818,-500.0,0.00013799,2]
[353311001,1739748641828,-500.0,0.00013799,2]
[353311002,1739748641838,-500.0,0.00013799,2]
[353311003,1739748641847,-500.0,0.00013799,2]
[353311004,1739748641857,-500.0,0.00013799,2]
[353311005,1739748641866,-607.81572068,0.00013799,2]
[353311006,1739748641875,-160.0,0.00013799,2]
[353311007,1739748641884,-118167.23209849,0.000138,5]
[353311008,1739748641893,-29725.89361778,0.000138,5]
[353311009,1739748641903,-764277.67651696,0.000138,2]
[353311010,1739748641915,-104145.31089478,0.000138,2]
[353311011,1739748641925,-203697.51192487,0.000138,2]
[353311012,1739748641935,-151.0,0.000138,2]
[353311013,1739748641944,-151.0,0.000138,2]
[353311014,1739748641955,-151.0,0.000138,2]
[353311015,1739748641965,-151.0,0.000138,2]
[353311016,1739748641975,-151.0,0.000138,2]
[353311017,1739748641984,-151.0,0.000138,2]
[353311018,1739748641994,-151.0,0.000138,2]
[353311019,1739748642003,-151.0,0.000138,2]
[353311020,1739748642013,-481.099923,0.000138,2]
[353311021,1739748642023,-481.099923,0.000138,2]
[353311022,1739748642033,-481.099923,0.000138,2]
[353311023,1739748642043,-481.099923,0.000138,2]
[353311024,1739748642052,-481.099923,0.000138,2]
[353311025,1739748642061,-1917.292053,0.000138,2]
[353311026,1739748642071,-1917.292053,0.000138,2]
[353311027,1739748642081,-1917.292053,0.000138,2]
[353311028,1739748642091,-1917.292053,0.000138,2]
[353311029,1739748642101,-1917.292053,0.000138,2]
[353311030,1739748642110,-1917.292053,0.000138,2]
[353311031,1739748642120,-1917.292053,0.000138,2]
[353311032,1739748642130,-1917.292053,0.000138,2]
[353311033,1739748642140,-1917.292053,0.000138,2]
[353311034,1739748642149,-1917.292053,0.000138,2]
[353311035,1739748642159,-1917.292053,0.000138,2]
[353311036,1739748642168,-1917.292053,0.000138,2]
[353311037,1739748642178,-1930.709053,0.000138,2]
[353311038,1739748642187,-1930.709053,0.000138,2]
[353311039,1739748642197,-1930.709053,0.000138,2]
[353311040,1739748642207,-1930.709053,0.000138,2]
[353311041,1739748642216,-1930.709053,0.000138,2]
[353311042,1739748642227,-1930.709053,0.000138,2]
[353311043,1739748642380,-1930.709053,0.000138,2]
[353311044,1739748642390,-1930.709053,0.000138,2]
[353311045,1739748642400,-1930.709053,0.000138,2]
[353311046,1739748642410,-1930.709053,0.000138,2]
[353311047,1739748642419,-5167.934145,0.000138,2]
[353311048,1739748642429,-5167.934145,0.000138,2]
[353311049,1739748642438,-5167.934145,0.000138,2]
[353311050,1739748642448,-5167.934145,0.000138,2]
[353311051,1739748642457,-5167.934145,0.000138,2]
[353311052,1739748642466,-5167.934145,0.000138,2]
[353311053,1739748642476,-5167.934145,0.000138,2]
[353311054,1739748642486,-5167.934145,0.000138,2]
[353311055,1739748642495,-5167.934145,0.000138,2]
[353311056,1739748642505,-5167.934145,0.000138,2]
[353311057,1739748642515,-5167.934145,0.000138,2]
[353311058,1739748642526,-5167.934145,0.000138,2]
[353311059,1739748642535,-151.0,0.000138,2]
[353311060,1739748642544,-331.186509,0.000138,2]
[353311061,1739748642554,-331.186509,0.000138,2]
[353311062,1739748642564,-331.186509,0.000138,2]
[353311063,1739748642573,-331.186509,0.000138,2]
[353311064,1739748642583,-331.186509,0.000138,2]
[353311065,1739748642592,-331.186509,0.000138,2]
[353311066,1739748642601,-331.186509,0.000138,2]
[353311067,1739748642611,-331.186509,0.000138,2]
[353311068,1739748642620,-1392.315967,0.000138,2]
[353311069,1739748642630,-331.186509,0.000138,2]
[353311070,1739748642640,-1392.315967,0.000138,2]
[353311071,1739748642650,-331.186509,0.000138,2]
[353311072,1739748642659,-1392.315967,0.000138,2]
[353311073,1739748642669,-331.186509,0.000138,2]
[353311074,1739748642679,-1392.315967,0.000138,2]
[353311075,1739748642688,-331.186509,0.000138,2]
[353311076,1739748642698,-1392.315967,0.000138,2]
[353311077,1739748642708,-1392.315967,0.000138,2]
[353311078,1739748642718,-1392.315967,0.000138,2]
[353311079,1739748642727,-1392.315967,0.000138,2]
[353311080,1739748642737,-1392.315967,0.000138,2]
[353311081,1739748642746,-1392.315967,0.000138,2]
[353311082,1739748642755,-1392.315967,0.000138,2]
[353311083,1739748642765,-1392.315967,0.000138,2]
[353311084,1739748642775,-7653.48125,0.000138,2]
[353311085,1739748642784,-7653.48125,0.000138,2]
[353311086,1739748642794,-1625.82625698,0.000138,2]
[353311180,1739748646687,-514.81,0.000137,2]
[353311182,1739748646697,-290.410164,0.000137,2]
[353311184,1739748646708,-224.399836,0.000137,2]
[353311186,1739748646718,-514.81,0.000137,2]
[353311188,1739748646727,-514.81,0.000137,2]
[353311190,1739748646737,-6027.65499302,0.000138,2]
[353311192,1739748646746,-7653.48125,0.000138,2]
[353311194,1739748646755,-7653.48125,0.000138,2]
[353311196,1739748646764,-7653.48125,0.000138,2]
[353311198,1739748646774,-5304.21006596,0.000138,2]
[353311201,1739748646786,-1388.90070012,0.000138,2]
[353311203,1739748646798,-384.8,0.000138,2]
[353311220,1739748699631,856.09,9.1e-05,2]
[353311221,1739748750766,555.0,0.00019,120]
[353311222,1739749745135,-262.98624614,8.646e-05,2]
[353311223,1739749745158,-5309.14355015,9e-05,2]
[353311224,1739749745179,-770.48,9.1e-05,2]
[353311225,1739749745200,-250.0,9.73e-05,2]
[353311226,1739749745221,-362.22076718,9.79e-05,2]
[353311227,1739749749171,-620.49126202,9.79e-05,2]
[353311228,1739749749192,-489.0,0.0001,2]
[353311229,1739749749215,-400.0,0.00010685,2]
[353311230,1739749749236,-300.0,0.00010858,2]
[353311231,1739749749258,-197.51323573,0.00010859,2]
[353311232,1739749749280,-1733.19595609,0.00010859,2]
[353311233,1739749749301,-865.04,0.00010959,2]
[353311234,1739749749323,-396.0,0.00011146,2]
[353311235,1739749749346,-24900.0,0.00011224,2]
[353311236,1739749749368,-291.58446135,0.000115,3]
[353311237,1739749755140,-7438.69753278,0.00011001,2]
[353311238,1739749755162,-154.34912263,0.000115,3]
[353311239,1739749756147,-43.06641602,0.000115,3]
[353311240,1739749756171,-400.87358398,0.00011933,2]
[353311273,1739749831885,-838.41,9.4e-05,2]
[353311274,1739749831895,-396.0,0.00011146,2]
[353311276,1739749831905,-2200.0,0.00011933,2]
[353311278,1739749831914,-611.0832059,0.00012278,2]
[353311280,1739749831923,-331.593,0.000126,2]
[353311282,1739749831933,-300.0,0.00012799,2]
[353311284,1739749831942,-500.0,0.000128,2]
[353311286,1739749831952,-175.2761034,0.000128,2]
[353311289,1739749831967,-324.7238966,0.000128,2]
[353311291,1739749831977,-500.0,0.000128,2]
[353311293,1739749831987,-500.0,0.000128,2]
[353311295,1739749831996,-500.0,0.000128,2]
[353311297,1739749832005,-500.0,0.000128,2]
[353311299,1739749832016,-500.0,0.000128,2]
[353311301,1739749832025,-500.0,0.000128,2]
[353311303,1739749832035,-500.0,0.000128,2]
[353311305,1739749832044,-500.0,0.000128,2]
[353311307,1739749832053,-500.0,0.000128,2]
[353311309,1739749832063,-500.0,0.000128,2]
[353311311,1739749832072,-244.01,0.000128,2]
[353311313,1739749832082,-489.0,0.00013,4]
[353311315,1739749832091,-10070.02205392,0.00013698,4]
[353311319,1739749832121,-311.51684575,0.00013698,4]
[353311321,1739749832132,-16633.76138586,0.00013698,4]
[353311323,1739749832142,-676.212601,0.00013699,2]
[353311325,1739749832151,-256.148248,0.00013699,2]
[353311328,1739749832161,-324.7914492,0.00013699,2]
[353311331,1739749832171,-156.82834178,0.00013699,2]
[353311333,1739749832180,-214.01272974,0.00013699,2]
[353311336,1739749832190,-3000.0,0.000137,2]
[353311338,1739749832199,-187.31005317,0.00013799,2]
[353311341,1739749832209,-151.0,0.000138,2]
[353311344,1739749832220,-151.0,0.000138,2]
[353311348,1739749832229,-151.0,0.000138,2]
[353311351,1739749832239,-151.0,0.000138,2]
[353311354,1739749832248,-151.0,0.000138,2]
[353311357,1739749832258,-151.0,0.000138,2]
[353311360,1739749832267,-151.0,0.000138,2]
[353311362,1739749832276,-151.0,0.000138,2]
[353311364,1739749832286,-151.0,0.000138,2]
[353311366,1739749832295,-151.0,0.000138,2]
[353311367,1739749832305,-151.0,0.000138,2]
[353311369,1739749832315,-151.0,0.000138,2]
[353311371,1739749832325,-151.0,0.000138,2]
[353311373,1739749832334,-151.0,0.000138,2]
[353311375,1739749832343,-151.0,0.000138,2]
[353311377,1739749832353,-300.522866,0.000138,2]
[353311379,1739749832363,-151.0,0.000138,2]
[353311381,1739749832373,-151.0,0.000138,2]
[353311383,1739749832382,-151.0,0.000138,2]
[353311385,1739749832392,-151.0,0.000138,2]
[353311388,1739749832401,-150.15,0.000138,2]
[353311390,1739749832411,-150.15,0.000138,2]
[353311392,1739749832422,-152.0,0.000138,2]
[353311394,1739749832431,-500.0,0.000138,2]
[353311396,1739749832441,-36628.62657674,0.00013898,2]
[353311503,1739749837780,-194.34085671,0.000138,2]
[353311505,1739749837789,-697.51844175,0.00013898,2]
[353311513,1739749837856,-403.79797624,0.00013898,2]
[353311516,1739749837868,-907.32436749,0.00013898,2]
[353311518,1739749837878,-2200.0,0.00013898,2]
[353311520,1739749837888,-1152.65850165,0.000139,2]
[353311522,1739749837899,-5816.81645247,0.000139,2]
[353311524,1739749837909,-24698.33127772,0.000139,2]
[353311526,1739749837918,-151.0,0.000139,2]
[353311528,1739749837928,-151.0,0.000139,2]
[353311530,1739749837938,-151.0,0.000139,2]
[353311532,1739749837947,-151.0,0.000139,2]
[353311534,1739749837956,-151.0,0.000139,2]
[353311536,1739749837966,-151.0,0.000139,2]
[353311538,1739749837975,-151.0,0.000139,2]
[353311540,1739749837984,-151.0,0.000139,2]
[353311542,1739749837993,-151.0,0.000139,2]
[353311544,1739749838002,-500.0,0.00013973,2]
[353311546,1739749838011,-500.0,0.00013973,2]
[353311548,1739749838020,-500.0,0.00013973,2]
[353311550,1739749838033,-500.0,0.00013973,2]
[353311552,1739749838042,-500.0,0.00013973,2]
[353311554,1739749838052,-500.0,0.00013973,2]
[353311556,1739749838062,-500.0,0.00013973,2]
[353311558,1739749838071,-500.0,0.00013973,2]
[353311560,1739749838080,-500.0,0.00013973,2]
[353311562,1739749838089,-500.0,0.00013973,2]
[353311565,1739749838099,-400.86841341,0.00013985,2]
[353311567,1739749838108,-500.0,0.00013986,2]
[353311569,1739749838118,-9102.74795234,0.00013986,2]
[353311571,1739749838127,-6272.34152958,0.00013986,2]
[353311573,1739749838137,-5618.87670675,0.00013986,2]
[353311575,1739749838146,-166.01111253,0.00013987,2]
[353311577,1739749838156,-6304.38644519,0.00013987,2]
[353311579,1739749838167,-5197.77447265,0.00013987,2]
[353311581,1739749838179,-3395.23358349,0.00013987,2]
[353311583,1739749838188,-527.42879268,0.00013988,2]
[353311724,1739749842876,-295.73894392,0.00011223,2]
[353311725,1739749842886,-242.5488935,0.00013988,2]
[353311727,1739749842946,-1900.70631486,0.00013988,2]
[353311729,1739749842957,-3863.6443125,0.00013988,2]
[353311732,1739749842967,-56302.73183667,0.00013988,2]
[353311735,1739749842977,-9102.74795234,0.00013989,2]
[353311736,1739749842987,-10860.06009629,0.00013989,2]
[353311737,1739749843007,-3317.03334969,0.00013989,2]
[353311753,1739749843605,-2315.54051184,0.00013989,2]
[353311754,1739749843615,-6272.34152958,0.00013989,2]
[353311755,1739749843626,-3852.1179588,0.0001399,2]
[353311756,1739749843811,-81.68695552,0.0001399,2]
[353311787,1739749845794,-7379.20952999,0.0001399,2]
[353312034,1739750843143,-574.58785307,8.501e-05,2]
[353312035,1739750847089,-1973.85800635,8.501e-05,2]
[353312036,1739750952195,-2451.55414058,8.501e-05,2]
[353312037,1739750952218,-5000.0,8.587e-05,2]
[353312038,1739750952241,-754.57,9.4e-05,2]
[353312039,1739750952262,-300.0,0.00011118,2]
[353312040,1739750952284,-2200.0,0.00011119,2]
[353312041,1739750952306,-396.0,0.00011165,2]
[353312042,1739750952328,-473.11195959,0.00011223,2]
[353312043,1739750952349,-500.0,0.00011223,2]
[353312044,1739750952371,-500.0,0.00011305,2]
[353312045,1739750952393,-500.776409,0.00011387,2]
[353312046,1739750952416,-1196.70749083,0.00011615,2]
[353312047,1739750964151,-389.20940317,0.00011615,2]
[353312048,1739750964171,-2134.31489021,0.00011615,2]
[353312049,1739750969278,-360.6253098,0.00010685,2]
[353312050,1739750998975,-150.0,0.00016427,60]
[353312051,1739750999001,-150.0,0.00016427,90]
[353312052,1739750999027,-991.77613512,0.00016427,120]
[353312053,1739750999054,-721.06797383,0.00016427,60]
[353312054,1739750999082,-223.09568672,0.00016427,120]
[353312055,1739750999108,-345.19533796,0.00016427,120]
[353312056,1739750999133,-542.79471475,0.00016427,120]
[353312057,1739750999160,-211.60329451,0.00016427,120]
[353312058,1739750999187,-217.43258556,0.00016427,120]
[353312059,1739750999213,-310.65173003,0.00016427,120]
[353312060,1739750999241,-3000.0,0.00016427,120]
[353312114,1739751031992,-39.3746902,0.00010685,2]
[353312116,1739751032002,-396.0,0.00011426,2]
[353312117,1739751032011,-871.152017,0.00013699,2]
[353312119,1739751032020,-3606.621796,0.00013699,2]
[353312121,1739751032029,-174.0,0.00013699,2]
[353312123,1739751032039,-174.0,0.00013699,2]
[353312125,1739751032048,-174.0,0.00013699,2]
[353312127,1739751032058,-174.0,0.00013699,2]
[353312129,1739751032068,-174.0,0.00013699,2]
[353312131,1739751032080,-174.0,0.00013699,2]
[353312133,1739751032090,-174.0,0.00013699,2]
[353312135,1739751032099,-174.0,0.00013699,2]
[353312138,1739751032108,-174.0,0.00013699,2]
[353312139,1739751032119,-174.0,0.00013699,2]
[353312141,1739751032128,-174.0,0.00013699,2]
[353312143,1739751032137,-174.0,0.00013699,2]
[353312145,1739751032151,-174.0,0.00013699,2]
[353312147,1739751032161,-175.0,0.00013699,2]
[353312149,1739751032170,-175.0,0.00013699,2]
[353312151,1739751032180,-175.0,0.00013699,2]
[353312153,1739751032189,-175.0,0.00013699,2]
[353312155,1739751032198,-175.0,0.00013699,2]
[353312157,1739751032207,-175.0,0.00013699,2]
[353312159,1739751032217,-175.0,0.00013699,2]
[353312161,1739751032226,-175.0,0.00013699,2]
[353312163,1739751032235,-175.0,0.00013699,2]
[353312165,1739751032244,-175.0,0.00013699,2]
[353312167,1739751032253,-175.0,0.00013699,2]
[353312169,1739751032262,-175.0,0.00013699,2]
[353312171,1739751032271,-175.0,0.00013699,2]
[353312173,1739751032289,-175.0,0.00013699,2]
[353312175,1739751032303,-175.0,0.00013699,2]
[353312177,1739751032312,-175.0,0.00013699,2]
[353312179,1739751032322,-175.0,0.00013699,2]
[353312181,1739751032332,-175.0,0.00013699,2]
[353312183,1739751032341,-175.0,0.00013699,2]
[353312185,1739751032351,-175.0,0.00013699,2]
[353312187,1739751032360,-175.0,0.00013699,2]
[353312189,1739751032370,-175.0,0.00013699,2]
[353312191,1739751032379,-175.0,0.00013699,2]
[353312193,1739751032389,-175.0,0.00013699,2]
[353312195,1739751032398,-175.0,0.00013699,2]
[353312197,1739751032407,-175.0,0.00013699,2]
[353312199,1739751032417,-175.0,0.00013699,2]
[353312201,1739751032426,-175.0,0.00013699,2]
[353312203,1739751032436,-175.0,0.00013699,2]
[353312205,1739751032445,-175.0,0.00013699,2]
[353312207,1739751032455,-175.0,0.00013699,2]
[353312208,1739751032464,-175.0,0.00013699,2]
[353312210,1739751032474,-175.0,0.00013699,2]
[353312212,1739751032484,-175.0,0.00013699,2]
[353312214,1739751032494,-175.0,0.00013699,2]
[353312217,1739751032512,-175.0,0.00013699,2]
[353312220,1739751032525,-175.0,0.00013699,2]
[353312222,1739751032539,-175.0,0.00013699,2]
[353312224,1739751032551,-175.0,0.00013699,2]
[353312226,1739751032564,-175.0,0.00013699,2]
[353312229,1739751032576,-175.0,0.00013699,2]
[353312231,1739751032589,-175.0,0.00013699,2]
[353312233,1739751032601,-3198.4576798,0.00013723,2]
[353312242,1739751032678,-219.31755626,0.00013723,2]
[353312427,1739751037796,-561.75424081,0.0001375,2]
[353312428,1739751037809,-214.5484637,0.0001385,2]
[353312429,1739751037820,-152.0,0.00013966,2]
[353312430,1739751037830,-265.274,0.00013987,2]
[353312431,1739751037842,-272.14829549,0.0001399,2]
[353312433,1739751037855,-3312.23176153,0.0001399,2]
[353312435,1739751037865,-406.33917598,0.0001399,2]
[353312436,1739751037875,-4095.77337442,0.0001399,2]
[353312437,1739751037886,-1464.81076589,0.00013992,2]
[353312438,1739751037898,-3089.30090989,0.00013992,2]
[353312441,1739751040036,-1883.1232061,0.00013716,2]
[353312463,1739751043004,-424.65253648,0.00013716,2]
[353312481,1739751045971,-5130.9217902,0.00013716,2]
[353312482,1739751045982,-155.0,0.00013896,2]
[353312483,1739751045994,-1980.21663776,0.00013992,2]
[353312484,1739751046007,-200.0,0.00013992,2]
[353312485,1739751046019,-247.82498987,0.00013992,2]
[353312486,1739751046030,-5618.87670675,0.00013993,2]
[353312487,1739751046041,-56302.73183667,0.00013993,2]
[353312488,1739751046052,-16492.63395782,0.00013993,2]
[353312489,1739751046062,-9102.74795234,0.00013994,2]
[353312490,1739751046073,-334.9981724,0.00013994,2]
[353312491,1739751046085,-334.9981724,0.00013994,2]
[353312492,1739751046095,-14897.39450133,0.00013994,2]
[353312493,1739751046106,-6272.34152958,0.00013995,2]
[353312494,1739751046118,-5618.87670675,0.00013997,2]
[353312495,1739751046129,-334.9981724,0.00013997,2]
[353312496,1739751046140,-500.0,0.00013997,2]
[353312497,1739751046152,-247.82498987,0.00013997,2]
[353312498,1739751046162,-56302.73183667,0.00013998,2]
[353312499,1739751046172,-247.82498987,0.00013998,2]
[353312500,1739751046183,-16492.63395782,0.00014,2]
[353312501,1739751046194,-6534.32831354,0.00014,2]
[353312502,1739751046205,-500.0,0.00014,2]
[353312503,1739751046216,-1000.0,0.00014,3]
[353312504,1739751046226,-674.05178701,0.00014,2]
[353312505,1739751046236,-151.0,0.00014,2]
[353312506,1739751046246,-151.0,0.00014,2]
[353312507,1739751046257,-151.0,0.00014,2]
[353312508,1739751046268,-1316.46524867,0.00014,2]
[353312509,1739751046278,-151.0,0.00014,2]
[353312510,1739751046289,-800.0,0.00014,4]
[353312511,1739751046299,-152.0,0.00014012,2]
[353312512,1739751046310,-59083.61604924,0.00014027,5]
[353312513,1739751046320,-15007.78080889,0.00014027,5]
[353312514,1739751046331,-124697.25929969,0.00014027,2]
[353312516,1739751076293,18005.71859488,0.00019,120]
[353312519,1739751232121,150.0,0.00016427,60]
[353312520,1739751232495,150.0,0.00016427,90]
[353312526,1739751500895,3000.0,0.00016424,120]
[353312527,1739751540365,150.0,0.00016412,90]
[353312529,1739751610306,30000.0,0.000178,120]
[353312530,1739751781191,163.184379,0.00011258,120]
[353312531,1739751837841,150.0,0.00016412,90]
[353312532,1739752043232,-185.81456844,8.416e-05,2]
[353312533,1739752045101,-319.61078531,8.416e-05,2]
[353312534,1739752114116,674.47833296,0.00016413,120]
[353312535,1739752114739,2387.50614615,0.00016413,120]
[353312536,1739752117163,321.58721453,0.00016413,120]
[353312537,1739752117192,1026.86355696,0.00016413,90]
[353312538,1739752117477,1160.0,0.00016413,120]
[353312539,1739752118204,1397.99490037,0.00016413,120]
[353312540,1739752119297,1583.26293307,0.00016413,120]
[353312541,1739752119588,2528.27124077,0.00016413,120]
[353312542,1739752120982,987.72887039,0.00016413,120]
[353312543,1739752122270,1722.8678379,0.00016413,120]
[353312544,1739752123249,3316.5395592,0.00016413,120]
[353312545,1739752123279,417.99785089,0.00016413,120]
[353312546,1739752124939,2000.0,0.00016413,60]
[353312547,1739752130615,150.0,0.00016413,120]
[353312548,1739752147125,-173.68464625,8.416e-05,2]
[353312549,1739752147146,-679.11,8.501e-05,2]
[353312550,1739752147166,-679.11,9.4e-05,2]
[353312551,1739752147187,-300.0,9.999e-05,2]
[353312552,1739752147209,-7438.69753278,0.0001,2]
[353312553,1739752147231,-605.0,0.0001,2]
[353312554,1739752147253,-1314.1399632,0.00011121,2]
[353312555,1739752147275,-163.184379,0.00011258,2]
[353312556,1739752147297,-546.4643576,0.000115,3]
[353312557,1739752155110,-58.5356424,0.000115,3]
[353312558,1739752155131,-396.0,0.00011551,2]
[353312559,1739752155152,-349.79835688,0.00011668,2]
[353312560,1739752165089,-46.20164312,0.00011668,2]
[353312561,1739752165111,-2128.6399917,0.00011668,2]
[353312613,1739752235687,-611.2,9.311e-05,2]
[353312614,1739752235697,-611.2,9.405e-05,2]
[353312615,1739752235707,-611.2,9.5e-05,2]
[353312616,1739752235717,-3867.21181781,0.0001,2]
[353312617,1739752235741,-3471.58736156,0.0001,2]
[353312636,1739752237958,-99.89835341,0.0001,2]
[353312637,1739752237968,-71.3600083,0.00011668,2]
[353312638,1739752237978,-605.0,0.00013,4]
[353312639,1739752237988,-7167.0,0.000135,3]
[353312640,1739752237997,-2000.0,0.000136,2]
[353312641,1739752238006,-2000.0,0.000136,2]
[353312642,1739752238015,-212.219,0.000136,2]
[353312643,1739752238025,-696.921613,0.00013699,2]
[353312644,1739752238035,-220.0,0.00013699,2]
[353312645,1739752238044,-220.0,0.00013699,2]
[353312646,1739752238053,-74.62577211,0.00013699,2]
[353312647,1739752238069,-145.37422789,0.00013699,2]
[353312648,1739752238079,-220.0,0.00013699,2]
[353312649,1739752238236,-220.0,0.00013699,2]
[353312650,1739752238247,-220.0,0.00013699,2]
[353312651,1739752238258,-220.0,0.00013699,2]
[353312652,1739752238268,-220.0,0.00013699,2]
[353312653,1739752238278,-220.0,0.00013699,2]
[353312654,1739752238288,-220.0,0.00013699,2]
[353312655,1739752238299,-220.0,0.00013699,2]
[353312656,1739752238309,-220.0,0.00013699,2]
[353312657,1739752238319,-220.0,0.00013699,2]
[353312658,1739752238329,-1803.310898,0.00013699,2]
[353312659,1739752238339,-220.0,0.00013699,2]
[353312660,1739752238352,-220.0,0.00013699,2]
[353312661,1739752238362,-220.0,0.00013699,2]
[353312662,1739752238374,-220.0,0.00013699,2]
[353312663,1739752238385,-220.0,0.00013699,2]
[353312664,1739752238396,-135.13153087,0.00013699,2]
[353312665,1739752238412,-84.86846913,0.00013699,2]
[353312666,1739752238424,-220.0,0.00013699,2]
[353312667,1739752238439,-220.0,0.00013699,2]
[353312668,1739752238451,-220.0,0.00013699,2]
[353312669,1739752238463,-220.0,0.00013699,2]
[353312670,1739752238474,-220.0,0.00013699,2]
[353312671,1739752238485,-220.0,0.00013699,2]
[353312672,1739752238495,-220.0,0.00013699,2]